[Event "EICC 2025"]
[Site "Eforie-Nord"]
[Date "2025.03.15"]
[Round "1.1"]
[White "Petrov, Nikita"]
[Black "Ciorgovean, Iustin"]
[Result "1-0"]
[Annotator "TA"]
[ECO "D39"]
[WhiteElo "2588"]
[BlackElo "2267"]
[PlyCount "43"]
[EventDate "2025.03.14"]
[EventType "swiss"]
[EventCountry "ROU"]
[SourceTitle "playchess.com"]
[Source "ChessBase"]
[SourceQuality "1"]
[TimeControl "40/5400+30:1800+30"]

{[%evp 15,43,26,31,15,31,12,16,13,8,11,36,-10,14,0,102,96,141,117,382,133,122,129,741,729,2102,1891,29988,29989,29987,29984]} 1. d4 {[%emt 0:00:04]} Nf6 {[%emt 0:00:06]} 2. c4 {[%emt 0:00:12]} e6 {[%emt 0:00:04]} 3. Nf3 {[%emt 0:00:49]} d5 {[%emt 0:00:04]} 4. Nc3 {[%emt 0:00:19]} Bb4 {[%emt 0:00:04]} 5. Bg5 {[%emt 0:00:52]} dxc4 {[%emt 0:00:32]} 6. e4 {[%emt 0:01:14]} h6 {[%emt 0:00:33]} 7. Bxf6 {[%emt 0:00:33]} Qxf6 {[%emt 0:00:08]} 8. Bxc4 {[%emt 0:00:17]} c5 {[%emt 0:02:12]} 9. O-O {[%emt 0:04:08] D39: Queen's Gambit Declined: Ragozin Defence with 5 Bg5 dxc4.} cxd4 {[%emt 0:02:31]} 10. e5 {[%emt 0:00:07]} Qd8 {[%emt 0:00:03]} 11. Ne4 {[%emt 0:00:28][%cal Od1b3][%mdl 1024] The position is equal. White has compensation.} O-O {[%emt 0:00:13]} 12. Qe2 {[%emt 0:02:50] White sacrificed a pawn} Be7 {[%emt 0:00:05]} 13. Ng3 $5 {[%emt 0:02:49][%mdl 4] Leaves trodden paths.} (13. Rad1 $14) 13... Bd7 {[%emt 0:17:38]} 14. Rad1 {[%emt 0:01:39]} Bc6 $146 {[%emt 0:10:13]} (14... Nc6 $11) (14... Qc7 15. Bd3 Bc6 16. Nxd4 Rd8 17. Bb1 Nd7 18. f4 Bc5 19. Kh1 Bxd4 20. Rxd4 Nf8 {½-½ Mamedyarov,S (2782)-Mekhitarian,K (2554) FIDE World Cup 2021 (2.1)}) 15. Nxd4 $16 {[%emt 0:01:26] White is more active.} Qa5 {[%emt 0:03:58]} 16. Nh5 {[%emt 0:14:56] Threatens to win with Qg4.} Rd8 $2 {[%emt 0:05:37][%mdl 8192]} (16... Kh8 $16 {was worth a try.}) 17. Qg4 $2 {[%emt 0:10:15]} (17. b4 $18 {is more deadly.} Qc7 18. Nxe6 fxe6 19. Qg4 Qxe5 (19... Bxb4 20. Rxd8+ Bf8 21. Nf6+ Kf7 22. Qxe6+ Kg6 23. Qg4#) 20. f4 Qe3+ 21. Kh1) 17... Qxe5 {[%emt 0:04:37] [#]} 18. Nxe6 {[%emt 0:14:12]} fxe6 $4 {[%emt 0:15:06][%mdl 8192] [#]} (18... Rxd1 $16 19. Rxd1 Nd7 (19... fxe6 20. f4 $11)) 19. f4 $1 $18 {[%emt 0:08:13]} Qe3+ {[%emt 0:14:49]} 20. Kh1 {[%emt 0:00:07][%csl Gh5][%cal Rg4g7]} g5 {[%emt 0:00:28]} 21. Rde1 {[%emt 0:02:45]} (21. Qxe6+ Qxe6 22. Rxd8+ Bxd8 $16) 21... Bxg2+ {[%emt 0:02:38]} 22. Kxg2 {[%emt 0:02:05] Weighted Error Value: White=0.24 (precise) /Black=1.42  Loses game:     	---       	Black=2      Missed win:     	White=1     	---        Mistake:       	White=1     	Black=1      Inaccurate:     	---       	Black=2      OK:         	White=3     	Black=3      Best:        	White=1     	---        Strong:       	White=1     	---} 1-0

[Event "EICC 2025"]
[Site "Eforie-Nord"]
[Date "2025.03.15"]
[Round "1.1"]
[White "Kistrup, Nicolai"]
[Black "Deac, Bogdan-Daniel"]
[Result "1/2-1/2"]
[Annotator "TA"]
[ECO "C10"]
[WhiteElo "2356"]
[BlackElo "2692"]
[PlyCount "88"]
[EventDate "2025.03.14"]
[EventType "swiss"]
[EventCountry "ROU"]
[SourceTitle "playchess.com"]
[Source "ChessBase"]
[SourceQuality "1"]
[TimeControl "40/5400+30:1800+30"]

{[%evp 9,88,40,35,18,17,8,10,0,5,1,1,0,-5,-8,0,0,7,-9,-15,-13,0,-27,-26,-27,-17,-18,-5,-8,-12,-30,-23,-13,0,0,0,0,0,-118,0,0,0,-5,-6,-6,-6,-15,-10,-20,0,-18,-7,-8,0,0,0,0,0,0,0,0,0,0,0,0,0,0,0,0,0,0,8,8,8,0,0,0,8,0,0,0,11]} 1. e4 {[%emt 0:00:04]} e6 {[%emt 0:05:26]} 2. d4 {[%emt 0:00:33]} d5 {[%emt 0:00:33]} 3. Nc3 {[%emt 0:00:38]} a6 {[%emt 0:06:28]} 4. Nf3 {[%emt 0:08:33]} Nf6 {[%emt 0:10:00]} 5. Bd3 {[%emt 0:09:09]} c5 {[%emt 0:01:21]} 6. exd5 {[%emt 0:04:59] C10: French with 3 Nc3: Unusual Black 3rd moves and 3...dxe4.} exd5 {[%emt 0:15:07]} 7. dxc5 {[%emt 0:06:09]} Bxc5 {[%emt 0:00:31]} 8. O-O {[%emt 0:06:30]} O-O {[%emt 0:10:17]} 9. Bg5 {[%emt 0:06:08]} Be6 $1 {[%emt 0:00:21]} 10. Qd2 {[%emt 0:05:32]} Re8 {[%emt 0:04:18]} 11. Rfe1 {[%emt 0:11:47] [#] Threatens to win with Bxf6.} Nbd7 {[%emt 0:03:27]} 12. Rad1 {[%emt 0:13:29]} h6 {[%emt 0:13:58]} 13. Bh4 {[%emt 0:08:21] A sharp opening} Rc8 $146 {[%emt 0:09:11]} ({Predecessor:} 13... Ba7 14. Ne5 Qb6 15. Na4 Qc7 16. Nxd7 Nxd7 17. Bg3 Qc6 18. b3 Rac8 19. Nb2 Nc5 20. c4 Nxd3 21. Qxd3 Bg4 22. Rxe8+ Rxe8 23. Rc1 Qf6 24. Qc3 Qxc3 {0-1 Robers,F-Huber,K KO-23413 freechess.de 2022}) 14. a3 {[%emt 0:02:22]} Qc7 {[%emt 0:04:15][%cal Oc5a3]} 15. Bg3 {[%emt 0:04:28]} Qc6 {[%emt 0:00:22]} 16. Ne2 {[%emt 0:02:19]} Bg4 {[%emt 0:04:53]} 17. Qf4 $1 {[%emt 0:03:16]} Qb6 {[%emt 0:05:47]} 18. b4 $132 {[%emt 0:01:22][%mdl 2048] White has counterplay} Bf8 {[%emt 0:00:20]} 19. h3 {[%emt 0:02:46]} Bh5 {[%emt 0:01:22]} 20. Ned4 {[%emt 0:00:46]} g5 {[%emt 0:01:14]} 21. Nxg5 {[%emt 0:01:15]} Bxd1 {[%emt 0:00:46]} 22. Rxd1 {[%emt 0:00:29]} (22. Bh7+ $2 Kh8 23. Nxf7+ Kxh7 $19) 22... Ne5 {[%emt 0:00:50][%cal Oe5g6]} 23. Nde6 {[%emt 0:00:32]} Rxe6 {[%emt 0:00:39]} ({Better is} 23... hxg5 $17 24. Qxg5+ Ng6 25. Nxf8 Kxf8 26. Qh6+ Kg8 (26... Ke7 27. Bxg6 fxg6 28. Qg7+ Kd8 29. Bh4 $11) 27. Bxg6 fxg6 28. Qxg6+ Kf8) 24. Nxe6 $11 {[%emt 0:00:16] The position is equal.} Nxd3 {[%emt 0:00:12]} 25. Qxf6 {[%emt 0:00:28]} Qxe6 {[%emt 0:00:33] Successful Defense Black} 26. Qxe6 {[%emt 0:00:17]} fxe6 {[%emt 0:00:00]} 27. Rxd3 {[%emt 0:00:53]} Rxc2 $17 {[%emt 0:00:02][%mdl 4096] Endgame KRB-KRB} 28. Be5 {[%emt 0:00:22]} b6 {[%emt 0:01:04]} 29. Bd4 {[%emt 0:00:41]} b5 {[%emt 0:01:09]} 30. Be5 {[%emt 0:00:29]} Rc1+ {[%emt 0:00:29]} 31. Kh2 {[%emt 0:00:06]} Rc4 {[%emt 0:00:10]} 32. g4 {[%emt 0:00:55]} a5 {[%emt 0:00:45]} 33. bxa5 {[%emt 0:00:13]} Ra4 {[%emt 0:00:01][%csl LRa3,LRa5]} 34. Bc7 {[%emt 0:00:48]} Bxa3 {[%emt 0:00:15]} 35. Rb3 {[%emt 0:00:31]} Bc5 {[%emt 0:01:22]} 36. Rxb5 {[%emt 0:00:33]} Bxf2 {[%emt 0:00:07]} 37. Be5 {[%emt 0:00:29]} Be3 {[%emt 0:00:50]} 38. Kg2 {[%emt 0:00:27]} Kf7 {[%emt 0:00:31]} 39. Kf3 {[%emt 0:00:25]} Bd2 {[%emt 0:00:25]} 40. Rb7+ {[%emt 0:00:31]} Ke8 {[%emt 0:00:02]} 41. Rb8+ {[%emt 0:30:31]} Kd7 {[%emt 0:30:12]} 42. Rb7+ {[%emt 0:00:00]} Ke8 {[%emt 0:00:00]} 43. Rb8+ {[%emt 0:00:00]} Kd7 {[%emt 0:00:00]} 44. Rb7+ {[%emt 0:00:00]} Ke8 {[%emt 0:00:00] Weighted Error Value: White=0.07 (flawless) /Black=0.07 (flawless)   Mistake:       	White=1     	Black=1      Inaccurate:     	White=1     	---        OK:         	White=15    	Black=16     Best:        	White=1     	Black=4      Strong:       	White=1     	Black=1} 1/2-1/2

[Event "EICC 2025"]
[Site "Eforie-Nord"]
[Date "2025.03.15"]
[Round "1.2"]
[White "Sarana, Alexey"]
[Black "Sanduleac, Vasile"]
[Result "1-0"]
[Annotator "TA"]
[ECO "A40"]
[WhiteElo "2689"]
[BlackElo "2351"]
[PlyCount "87"]
[EventDate "2025.03.14"]
[EventType "swiss"]
[EventCountry "ROU"]
[SourceTitle "playchess.com"]
[Source "ChessBase"]
[SourceQuality "1"]
[TimeControl "40/5400+30:1800+30"]

{[%evp 9,87,45,48,43,46,0,14,5,37,29,36,33,33,36,39,44,58,54,48,47,64,43,37,41,68,51,85,52,52,0,51,46,48,37,99,96,112,121,115,112,107,133,117,106,108,85,89,60,69,77,97,32,37,21,29,28,28,28,89,6,42,40,93,59,102,65,61,70,77,77,238,202,251,253,245,236,253,253,337,328]} 1. d4 {[%emt 0:00:02]} g6 {[%emt 0:00:25]} 2. c4 {[%emt 0:00:54]} Bg7 {[%emt 0:00:06]} 3. e4 {[%emt 0:00:05]} Nc6 {[%emt 0:01:34]} 4. Nf3 {[%emt 0:00:27]} d6 {[%emt 0:00:16]} 5. d5 {[%emt 0:00:14]} Ne5 {[%emt 0:02:36]} 6. Nxe5 {[%emt 0:00:48] A40: Unusual replies to 1 d4.} Bxe5 {[%emt 0:00:11]} 7. h4 $146 {[%emt 0:03:07]} (7. Nc3 $14) (7. Be2 Bg7 8. Nc3 Nf6 9. O-O O-O 10. Be3 e5 11. c5 h5 12. f3 Kh7 13. cxd6 cxd6 14. Rc1 Bh6 15. Qd2 Bxe3+ 16. Qxe3 Bd7 17. b4 a5 18. b5 Kg7 19. Na4 {0-1 Bluebaum,M (2672)-Nakamura,H (2736) Speed Chess Super Swiss blitz 2020 (5)}) 7... h5 {[%emt 0:01:25]} 8. Bd3 {[%emt 0:01:51] The position is equal.} Bg7 {[%emt 0:07:28]} 9. Nc3 {[%emt 0:02:20]} Nf6 {[%emt 0:03:23]} 10. Bg5 {[%emt 0:00:15]} c6 {[%emt 0:00:41]} 11. Qd2 {[%emt 0:01:39]} Qa5 {[%emt 0:12:49]} 12. O-O {[%emt 0:04:28]} Qc7 {[%emt 0:04:28]} 13. Rac1 {[%emt 0:06:57]} O-O {[%emt 0:04:43]} 14. f3 {[%emt 0:08:50]} Bd7 {[%emt 0:14:43]} 15. dxc6 {[%emt 0:02:30]} Bxc6 {[%emt 0:01:31]} 16. Nd5 {[%emt 0:06:36]} Bxd5 {[%emt 0:01:07]} 17. cxd5 {[%emt 0:00:16]} Qd8 {[%emt 0:01:22]} 18. Qb4 {[%emt 0:03:32][%cal Od3e2] White is much more active. Black is weak on the light squares} Nd7 {[%emt 0:04:28]} 19. Qxb7 {[%emt 0:02:10]} ({Better is} 19. Be2 $14) 19... Nc5 {[%emt 0:00:18] [#]} (19... Bd4+ $1 $11 20. Kh2 Rb8) 20. Rxc5 $1 $14 {[%emt 0:01:22]} dxc5 {[%emt 0:00:11]} 21. Bxe7 {[%emt 0:02:13]} (21. Qxe7 Qb6 22. Be3 Qxb2 23. Qxc5 Rfc8 $15) 21... Qb8 {[%emt 0:03:19]} (21... Bd4+ $14 22. Kh1 Rb8 23. Qxa7 Ra8) 22. Qxb8 $1 $16 {[%emt 0:01:45]} Rfxb8 {[%emt 0:00:09]} 23. b3 {[%emt 0:00:05]} (23. Bxc5 Rxb2 24. Rf2 Rc8 25. Rxb2 (25. Bxa7 Rc1+ 26. Rf1 Rxf1+ 27. Kxf1 Rxa2 $11) 25... Bxb2 $14) 23... Bd4+ {[%emt 0:03:33]} 24. Kh2 {[%emt 0:02:48]} Rb7 {[%emt 0:00:30]} 25. Bd6 {[%emt 0:06:24]} a5 {[%emt 0:01:25]} 26. Bc4 {[%emt 0:02:45]} a4 {[%emt 0:01:01]} 27. Rc1 {[%emt 0:02:32]} axb3 {[%emt 0:02:45]} 28. Bxb3 {[%emt 0:00:06][%cal Oh2h3] A strong pair of Bishops.} Ra6 {[%emt 0:02:28]} 29. Bf4 {[%emt 0:01:09]} Kf8 {[%emt 0:04:57]} 30. Kh3 {[%emt 0:00:42]} (30. e5 $1 $16) 30... f6 $14 {[%emt 0:00:29]} 31. Rc2 {[%emt 0:01:31]} Ke7 {[%emt 0:01:04]} 32. g4 {[%emt 0:00:29]} hxg4+ {[%emt 0:00:13]} 33. Kxg4 {[%emt 0:00:05]} Kf8 {[%emt 0:04:53]} (33... Kd8 $11 {remains equal.}) 34. Bg3 {[%emt 0:05:04]} (34. h5 $16 gxh5+ 35. Kxh5) 34... Rh7 {[%emt 0:01:39][%cal Of6f5]} 35. Re2 {[%emt 0:07:16]} Re7 {[%emt 0:04:22]} (35... Rb6 $14) 36. Kh3 {[%emt 0:00:56]} Rh7 {[%emt 0:00:27]} 37. Kg2 {[%emt 0:01:07]} Rb6 {[%emt 0:05:15]} 38. f4 {[%emt 0:00:33]} Rd7 {[%emt 0:00:24]} 39. Kf3 {[%emt 0:03:30]} f5 $2 {[%emt 0:02:39] Black cannot hold the game after this.} (39... Ra6 $16 {was necessary.}) 40. e5 $18 {[%emt 0:00:05][%cal Oh4h5]} Rxb3+ {[%emt 0:00:05]} 41. axb3 {[%emt 0:30:03] Strongly threatening d6.} Rxd5 {[%emt 0:30:04] [#]} 42. h5 $1 {[%emt 0:05:57][%mdl 512]} gxh5 {[%emt 0:00:06] [#]} (42... Rd7 43. hxg6) 43. Rh2 $1 {[%emt 0:00:11]} Ba1 {[%emt 0:01:08]} 44. Ke2 {[%emt 0:00:31] Prevents Rd3.   Weighted Error Value: White=0.12 (very precise) /Black=0.22 (precise)   Loses game:     	---       	Black=1      Mistake:       	White=4     	Black=4      Inaccurate:     	White=4     	Black=6      OK:         	White=12    	Black=9      Best:        	White=2     	Black=4      Strong:       	White=2     	---        Brilliant:      	White=2     	---} ({Weaker is} 44. Rxh5 Rd3+ 45. Kg2 Ke8 46. Rxf5 Rxb3 $18) 1-0

[Event "EICC 2025"]
[Site "Eforie-Nord"]
[Date "2025.03.15"]
[Round "1.2"]
[White "Aydin, Gulenay"]
[Black "Andersen, Mads"]
[Result "0-1"]
[Annotator "TA"]
[ECO "B81"]
[WhiteElo "2265"]
[BlackElo "2585"]
[PlyCount "96"]
[EventDate "2025.03.14"]
[EventType "swiss"]
[EventCountry "ROU"]
[SourceTitle "playchess.com"]
[Source "ChessBase"]
[SourceQuality "1"]
[TimeControl "40/5400+30:1800+30"]

{[%evp 12,96,21,23,47,38,38,27,33,29,34,34,39,22,31,-12,-15,-18,0,-18,0,0,36,0,0,-34,-10,-2,0,-41,25,39,29,43,64,56,112,64,72,66,79,0,7,0,0,0,14,16,12,7,5,-378,-366,-354,-363,-370,-361,-432,-432,-413,-407,-451,-457,-422,-478,-508,-420,-489,-488,-485,-483,-480,-473,-449,-461,-467,-461,-465,-448,-700,-568,-831,-856,-821,-819,-770,-733]} 1. e4 {[%emt 0:00:07]} c5 {[%emt 0:00:10]} 2. Nf3 {[%emt 0:00:05]} d6 {[%emt 0:00:10]} 3. d4 {[%emt 0:00:05]} cxd4 {[%emt 0:00:06]} 4. Nxd4 {[%emt 0:00:04]} Nf6 {[%emt 0:00:10][%cal Bg8f6,Bf6d7,Bd7b6,Bb6c4][%mdl 32]} 5. Nc3 {[%emt 0:00:13]} a6 {[%emt 0:00:09]} 6. h3 {[%emt 0:00:45][%cal Bh2h3,Bh3h4][%mdl 32]} e6 {[%emt 0:07:07]} 7. g4 {[%emt 0:00:39][%cal Bg2g4,Bg4g5][%mdl 32]} Be7 {[%emt 0:00:08] B81: Sicilian Scheveningen: Keres Attack.} 8. g5 {[%emt 0:03:35]} Nfd7 {[%emt 0:00:24][%cal Ob7b5]} 9. Bg2 {[%emt 0:16:04]} Nc6 {[%emt 0:05:55] White has an edge.} (9... Bxg5 $6 10. Nxe6 fxe6 11. Qh5+ (11. Qxd6 $2 Qe7 $19) 11... g6 12. Qxg5 $16) 10. h4 {[%emt 0:09:52]} Qb6 {[%emt 0:09:49] is the legacy move (10...0-0).} 11. Nb3 {[%emt 0:05:42]} Qc7 {[%emt 0:03:31]} 12. Be3 {[%emt 0:17:02]} b5 {[%emt 0:03:50]} 13. a3 $146 {[%emt 0:02:41]} (13. Qe2 Bb7 14. O-O-O Nb6 15. f4 Nc4 16. Bf2 Rc8 17. f5 N6e5 18. Nd4 Nxb2 19. Ncxb5 Nbd3+ 20. Rxd3 Nxd3+ 21. Qxd3 axb5 22. fxe6 {0-1 Souza dos Santos,M (1959)-Wu,C (2347) Titled Tuesday intern op 27th Oct blitz 2020 (1)}) 13... Nb6 {[%emt 0:15:29]} 14. Qe2 {[%emt 0:11:08]} Rb8 {[%emt 0:06:50]} 15. O-O-O {[%emt 0:21:02]} Nc4 {[%emt 0:08:03]} 16. f4 {[%emt 0:01:19]} N6a5 {[%emt 0:06:30]} 17. Nxa5 {[%emt 0:00:50]} Qxa5 {[%emt 0:00:30]} (17... Nxe3 18. Qxe3 Qxa5 19. Qd2 Qb6) 18. f5 {[%emt 0:05:12]} d5 {[%emt 0:10:25][%cal Oe7a3] [#]} 19. Nb1 {[%emt 0:01:03]} (19. exd5 Bxa3 20. Kb1 Bxb2 $17 (20... Nxb2 21. dxe6 Nxd1 22. Bc6+ Kf8 23. Nxd1 $11)) 19... b4 {[%emt 0:02:24]} 20. a4 {[%emt 0:00:01]} b3 {[%emt 0:05:14]} (20... exf5 21. exd5 Qc7 (21... Nxe3 $2 22. Qxe3 Qb6 23. Qe5 $18) 22. Bd4 $16) (20... Qxa4 $15 21. fxe6 (21. exd5 Qa2 $15) 21... O-O (21... Bxe6 22. exd5 b3 23. dxe6 $15) (21... fxe6 22. b3 $14) 22. exd5 Qa2) 21. c3 $1 $11 {[%emt 0:00:11]} Nxe3 {[%emt 0:07:55]} 22. Qxe3 {[%emt 0:00:01][%cal Re4d5]} O-O {[%emt 0:01:50]} (22... Qxa4 23. exd5 Qg4 24. Be4 $16 (24. Bh3 Qxh4 25. f6 gxf6 $16)) 23. exd5 {[%emt 0:01:58][%cal Rf5e6]} (23. f6 {feels hotter.} Qc5 24. Qd3 Bd6 25. fxg7 Rd8 26. Rhf1) 23... Bc5 {[%emt 0:00:01]} ({Black should try} 23... Qc5 $1 $14 24. Qxc5 Bxc5) 24. Qe5 $16 {[%emt 0:01:20]} Bb7 {[%emt 0:01:54]} 25. fxe6 {[%emt 0:01:17]} fxe6 {[%emt 0:00:21]} 26. Qxe6+ {[%emt 0:00:37]} ({White should try} 26. h5 $16 {And now h6 would win.} Qxa4 27. Rhe1) 26... Kh8 $132 {[%emt 0:00:01][%cal Ob8e8][%mdl 2048] Black is not keeping still} 27. Rhe1 {[%emt 0:00:12]} Qxa4 {[%emt 0:01:51][%cal Ob8e8]} 28. Qe4 {[%emt 0:00:21]} Qb5 {[%emt 0:01:53]} 29. Bf1 {[%emt 0:00:06]} Bxd5 {[%emt 0:01:24]} 30. Qxd5 {[%emt 0:01:13]} (30. Bxb5 {simplifies} Bxe4 31. Rxe4 Rxb5 32. Nd2) 30... Rxf1 {[%emt 0:00:10]} 31. Na3 $2 {[%emt 0:00:38][%mdl 8192] [#] White does not recover from this.} (31. Nd2 $11 Rf2 32. Re5) 31... Be3+ $1 $19 {[%emt 0:00:56][%mdl 512]} 32. Rxe3 {[%emt 0:00:24]} Qxd5 {[%emt 0:00:04]} 33. Rxf1 {[%emt 0:00:02]} Rd8 {[%emt 0:00:38]} 34. Re2 {[%emt 0:01:04] Wards off Qd2+} Kg8 {[%emt 0:00:34]} 35. Rfe1 {[%emt 0:00:27]} Qf7 {[%emt 0:00:45]} 36. Nb1 {[%emt 0:00:35]} a5 {[%emt 0:00:44]} 37. Nd2 {[%emt 0:00:26]} a4 {[%emt 0:00:17]} 38. Re7 {[%emt 0:00:34]} Qf5 {[%emt 0:00:32][%csl Gb3][%cal Rf5c2]} 39. Re8+ {[%emt 0:00:29]} Rxe8 {[%emt 0:00:27] Black is clearly winning.} 40. Rxe8+ {[%emt 0:00:02][%mdl 4096] Endgame KQ-KRN} Kf7 {[%emt 0:00:08]} 41. Re4 {[%emt 0:30:51]} Qh3 {[%emt 0:06:31] ( -> ...Qh1+)} 42. Kd1 {[%emt 0:00:00]} Qh1+ {[%emt 0:02:38]} ({Much less strong is} 42... a3 43. bxa3 Qxc3 44. Rb4 $19) 43. Ke2 {[%emt 0:00:00]} Qa1 {[%emt 0:00:38]} (43... a3 44. bxa3 b2 45. Rb4 $19) 44. Nc4 {[%emt 0:00:00]} Kg6 {[%emt 0:03:46][%cal Oa4a3] and ...a3! would now be decisive} 45. Nd2 {[%emt 0:00:00]} (45. Kd3 $142) 45... Kh5 {[%emt 0:03:42]} 46. Rb4 {[%emt 0:01:31]} Qxb2 {[%emt 0:02:28]} 47. Rxa4 {[%emt 0:00:02]} Qc2 {[%emt 0:02:11]} 48. Rb4 {[%emt 0:00:53]} b2 {[%emt 0:00:14] Weighted Error Value: White=0.40/Black=0.15 (very precise)   Loses game:     	White=1     	---        Mistake:       	White=2     	Black=2      Inaccurate:     	White=4     	Black=1      OK:         	White=13    	Black=21     Best:        	White=3     	Black=3      Strong:       	White=1     	---        Brilliant:      	---       	Black=1} 0-1

[Event "EICC 2025"]
[Site "Eforie-Nord"]
[Date "2025.03.15"]
[Round "1.3"]
[White "Muradli, Mahammad"]
[Black "Manea, Alexandru"]
[Result "1-0"]
[Annotator "TA"]
[ECO "E11"]
[WhiteElo "2584"]
[BlackElo "2260"]
[PlyCount "83"]
[EventDate "2025.03.14"]
[EventType "swiss"]
[EventCountry "ROU"]
[SourceTitle "playchess.com"]
[Source "ChessBase"]
[SourceQuality "1"]
[TimeControl "40/5400+30:1800+30"]

{[%evp 12,83,16,16,11,1,0,4,2,0,6,2,16,16,17,17,20,11,20,8,46,8,10,17,14,8,8,0,13,14,13,14,14,17,17,0,248,250,258,258,258,258,258,258,248,251,271,266,262,258,290,261,291,284,282,290,275,277,270,258,376,327,367,369,352,346,859,862,854,841,824,824,808,790]} 1. d4 {[%emt 0:00:09]} e6 {[%emt 0:00:39]} 2. c4 {[%emt 0:00:12]} Bb4+ {[%emt 0:00:10]} 3. Nd2 {[%emt 0:03:25]} d5 {[%emt 0:02:36]} 4. e3 {[%emt 0:03:53]} Nf6 {[%emt 0:01:05]} 5. Ngf3 {[%emt 0:01:09]} O-O {[%emt 0:00:08]} 6. a3 {[%emt 0:01:06]} Be7 {[%emt 0:00:51]} 7. b4 {[%emt 0:04:28] is cutting edge theory.} b6 {[%emt 0:14:39] E11: Bogo-Indian.} 8. c5 {[%emt 0:02:48]} a5 {[%emt 0:02:29]} 9. Bb2 {[%emt 0:02:43]} c6 {[%emt 0:00:50] The position is equal.} 10. Bc3 $146 {[%emt 0:17:51]} (10. Be2 Ba6 11. O-O Qc8 12. cxb6 Nbd7 13. bxa5 Bxe2 14. Qxe2 Rxa5 15. Bc3 Rxa3 16. Rxa3 Bxa3 {1-0 Nabaty,T (2630)-Stefansson,H (2471) Olympiad-45 Budapest 2024 (7.3)}) 10... Nbd7 {[%emt 0:04:14][%cal Rb6c5]} 11. Qc2 {[%emt 0:02:23]} Ba6 {[%emt 0:02:51]} 12. Bxa6 {[%emt 0:04:03]} Rxa6 {[%emt 0:00:16]} 13. O-O {[%emt 0:00:25]} Qa8 {[%emt 0:00:40]} 14. Rfc1 {[%emt 0:10:12]} Rb8 {[%emt 0:10:42]} 15. Ne1 {[%emt 0:01:32]} Qb7 {[%emt 0:16:44]} 16. Nd3 {[%emt 0:03:46] Threatening cxb6.} axb4 {[%emt 0:01:17]} 17. axb4 {[%emt 0:00:11]} Rxa1 {[%emt 0:03:14]} 18. Rxa1 {[%emt 0:01:11]} Ra8 {[%emt 0:00:03]} 19. Ra4 {[%emt 0:02:32]} Ne8 {[%emt 0:01:18][%cal Bf6e8,Be8c7,Bc7b5,Bb5a7,Ba7c8,Bc8d6][%mdl 32]} 20. Qa2 {[%emt 0:01:24]} Rxa4 {[%emt 0:00:25]} 21. Qxa4 {[%emt 0:00:02]} Nc7 {[%emt 0:00:10]} 22. Nb3 {[%emt 0:01:56]} Nb5 {[%emt 0:01:44]} 23. Be1 {[%emt 0:00:28]} Qa7 $2 {[%emt 0:25:19] Black is on the road to losing.} (23... Qc8 $11 {and Black has nothing to worry.}) 24. Qxa7 $18 {[%emt 0:01:16]} Nxa7 {[%emt 0:00:01] [#]} 25. Ne5 $1 {[%emt 0:01:01]} Nb8 {[%emt 0:02:35]} (25... Nxe5 $2 26. cxb6 Nb5 27. dxe5 $18) 26. cxb6 {[%emt 0:00:10]} Nc8 {[%emt 0:00:15][%cal Of7f6]} 27. b7 {[%emt 0:00:41]} Nd6 {[%emt 0:00:20][%cal Of7f6]} 28. Nc5 {[%emt 0:04:23]} f6 {[%emt 0:00:13]} 29. Ned3 {[%emt 0:00:04]} Kf7 {[%emt 0:00:06]} 30. f3 {[%emt 0:00:26]} Nb5 {[%emt 0:00:14]} 31. Nf4 {[%emt 0:04:47]} e5 {[%emt 0:00:19]} 32. dxe5 {[%emt 0:00:10]} fxe5 {[%emt 0:00:02]} 33. Nfd3 {[%emt 0:00:10]} Bd6 {[%emt 0:00:18]} 34. Bg3 {[%emt 0:03:27]} Kf6 {[%emt 0:00:07]} 35. Kf1 {[%emt 0:02:07]} Kf5 {[%emt 0:00:17]} (35... Na3 {might work better.} 36. e4 g5) 36. e4+ {[%emt 0:01:41][%cal Be3e4,Be4e5,Be5e6][%mdl 32]} Kf6 {[%emt 0:00:08]} 37. f4 {[%emt 0:02:29]} exf4 {[%emt 0:00:20]} 38. e5+ {[%emt 0:00:35]} ({Don't take} 38. Nxf4 Ke7 39. e5 (39. exd5 g5 $18) 39... Bxc5 $18) (38. Bxf4 Bxf4 39. Nxf4 dxe4 40. Nh5+ (40. Nxe4+ $2 Ke5 $19) 40... Kf7 41. Nxe4 Nc7 $18) 38... Kf7 $2 {[%emt 0:03:08]} (38... Bxe5 39. Nxe5 (39. Bxf4 Bxf4 40. Nxf4 h6 $18) (39. Nxf4 Kf7 $16) 39... Kxe5) 39. Bxf4 {[%emt 0:01:40] White is clearly winning.} ({Not} 39. Nxf4 Bxe5 40. h4 Bd6 $16 (40... g6 $2 41. Kf2 $18)) 39... Bc7 {[%emt 0:00:04]} 40. e6+ {[%emt 0:00:12]} Ke7 {[%emt 0:00:28]} 41. Bxc7 {[%emt 0:31:45]} Nxc7 {[%emt 0:30:08] [#]} 42. Nd7 $1 {[%emt 0:00:10][%mdl 512] Weighted Error Value: White=0.02 (flawless) /Black=0.34  Loses game:     	---       	Black=1      Mistake:       	---       	Black=2      Inaccurate:     	White=1     	Black=1      OK:         	White=15    	Black=16     Best:        	White=4     	Black=1      Strong:       	White=1     	---} 1-0